{"text_format":"3","workbook":"xlsx","n_sheets":5,"sheets":["7 КЛАСС","8 КЛАСС","9 КЛАСС","10 КЛАСС","11 КЛАСС"],"not_rendered":{"defined_names":3},"read":"whole","date_system":"1900"}

{"sheet":"7 КЛАСС","index":0,"n_rows":19,"n_cols":16,"rows_kept":19}
["№","Название ОУ","Фамилия","Имя","Отчество","Пол","Участник с ОВЗ","Класс","Класс участия","Первичный балл","Добавлено по итогам апелляций","Итоговый балл","Макс. Балл","Статус","Учитель","Место работы учителя"]
[1,"Муниципальное бюджетное общеобразовательное учреждение \"Юлбатская основная общеобразовательная школа Сабинского муниципального района РТ\"","Тухбатуллин","Салим","Фанисович","м","нет",7,7,6,null,6,9,"призёр","Хасанова Миляуша Мулламухаметовна","Муниципальное бюджетное общеобразовательное учреждение \"Юлбатская основная общеобразовательная школа Сабинского муниципального района РТ\""]
[2,"Муниципальное бюджетное общеобразовательное учреждение \"Тимершикская средняя общеобразовательная школа Сабинского муниципального района РТ\"","Валиев ","Амир","Рафисович","м","нет",7,7,5,null,{"$f":"J3","v":5},9,"участник","Фазылова Сюмбель Рамилевна","Муниципальное бюджетное общеобразовательное учреждение \"Тимершикская средняя общеобразовательная школа Сабинского муниципального района РТ\""]
[3,"Муниципальное бюджетное общеобразовательное учреждение «Центр образования «ОНИКС» для одаренных детей» Сабинского муниципального района Республики Татарстан","Хазиахметов","Ирек","Искандерович","м","нет",7,7,6,null,{"$f":"J4","v":6},9,"призёр","Гаптерахимов Расим Таснимович","Муниципальное бюджетное общеобразовательное учреждение «Центр образования «ОНИКС» для одаренных детей» Сабинского муниципального района Республики Татарстан"]
[4,"Муниципальное бюджетное общеобразовательное учреждение \"Шеморданский лицей \"Рост\" Сабинского муниципального района Республики Татарстан\"","Хуснутдинов","Булат","Ленарович","м","нет",7,7,9,null,9,9,"победитель","Иванова Алина Андреевна","Муниципальное бюджетное общеобразовательное учреждение \"Шеморданский лицей \"Рост\" Сабинского муниципального района Республики Татарстан\""]
[5,"Муниципальное бюджетное общеобразовательное учреждение \"Шеморданский лицей \"Рост\" Сабинского муниципального района Республики Татарстан\"","Каримов","Аскар","Ришатович","м","нет",7,7,8,null,8,9,"призёр","Иванова Алина Андреевна","Муниципальное бюджетное общеобразовательное учреждение \"Шеморданский лицей \"Рост\" Сабинского муниципального района Республики Татарстан\""]
[6,"Муниципальное бюджетное общеобразовательное учреждение \"Большешинарская  средняя общеобразовательная школа имени А.А. Ахунзянова Сабинского муниципального района РТ\"","Ахметов","Адель","Раилевич","м","нет",7,7,8,null,8,9,"призёр","Ахметов Айдар Рашитович","Муниципальное бюджетное общеобразовательное учреждение \"Большешинарская  средняя общеобразовательная школа имени А.А. Ахунзянова Сабинского муниципального района РТ\""]
[7,"Муниципальное бюджетное общеобразовательное учреждение \"Большеарташская основная общеобразовательная школа Сабинского муниципального района Республики Татарстан\"","Гаянов","Карим","Ирекович","м","нет",7,7,7,null,7,9,"призёр","Гайбадуллин Ильнур Бакиевич","Муниципальное бюджетное общеобразовательное учреждение \"Большеарташская основная общеобразовательная школа Сабинского муниципального района Республики Татарстан\""]
[8,"Государственное бюджетное общеобразовательное учреждение \"Икшурминская кадетская школа-интернат имени Байкиева К.С.\"","Уваров ","Руслан","Рамилевич ","м","нет",7,7,4,null,4,9,"участник","Тимерханова Лейсан Фирдаусовна","Государственное бюджетное общеобразовательное учреждение \"Икшурминская кадетская школа-интернат имени Байкиева К.С.\""]
[9,"Муниципальное бюджетное\n общеобразовательное учреждение \n\"Лесхозская средняя \nобщеобразовательная школа \nСабинского муниципального\n района Республики Татарстан\"","Сабитов ","Айдар","Илфатович","м","нет",7,7,4,null,4,9,"участник",null,"Муниципальное бюджетное\n общеобразовательное учреждение \n\"Лесхозская средняя \nобщеобразовательная школа \nСабинского муниципального\n района Республики Татарстан\""]
[10,"Муниципальное бюджетное общеобразовательное учреждение \"Сабабашская основная общеобразовательная школа Сабинского муниципального района РТ\"","Исхаков","Ильяр","Ильнурович","м","нет",7,7,1,null,1,9,"участник","Тухфатуллина Миляуша Бикташевна","Муниципальное бюджетное общеобразовательное учреждение \"Сабабашская основная общеобразовательная школа Сабинского муниципального района РТ\""]
[11,"Муниципальное бюджетное  общеобразовательное учреждение \n\"Гимназия п.г.т. Богатые Сабы Сабинского муниципального\n района Республики Татарстан\"","Шигабиев","Фирдус","Фаридович","м","нет",7,7,3,null,3,9,"участник","Байрамова Лейсан Илгизаровна","Муниципальное бюджетное  общеобразовательное учреждение \n\"Гимназия п.г.т. Богатые Сабы Сабинского муниципального\n района Республики Татарстан\""]
[12,"Муниципальное бюджетное  общеобразовательное учреждение \n\"Гимназия п.г.т. Богатые Сабы Сабинского муниципального\n района Республики Татарстан\"","Валиуллин ","Альфис","Альфредович","м","нет",7,7,4,null,4,9,"участник","Байрамова Лейсан Илгизаровна","Муниципальное бюджетное  общеобразовательное учреждение \n\"Гимназия п.г.т. Богатые Сабы Сабинского муниципального\n района Республики Татарстан\""]
[13,"муниципальное бюджетное общеобразовательное учреждение \"Изминская средняя общеобразовательная школа Сабинского муниципального района Республики Татарстан\"","Миннебаев","Самат","Ильнарович","м","нет",7,7,3,null,3,9,"участник","Галиева Гульназ Муллагалиевна","муниципальное бюджетное общеобразовательное учреждение \"Изминская средняя общеобразовательная школа Сабинского муниципального района Республики Татарстан\""]
[14,"Муниципальное бюджетное общеобразовательное учреждение \"Евлаштауская  средняя общеобразовательная школа Сабинского муниципального района Республики Татарстан\"","Мухлисуллина","Амина","Фанисовна","ж","нет",7,7,5,null,5,9,"участник","Яруллина Лейсан  Корбанга-лиевна","Муниципальное бюджетное общеобразовательное учреждение \"Евлаштауская  средняя общеобразовательная школа Сабинского муниципального района Республики Татарстан\""]
[15,"Муниципальное бюджетное общеобразовательное учреждение \"Сабинская  средняя общеобразовательная школа Сабинского муниципального района Республики Татарстан\"","Миннекаев","Айзат","Азатович","м","нет",7,7,3,null,3,9,"участник","Галимбекова Гулина Флоридовна","Муниципальное бюджетное общеобразовательное учреждение \"Сабинская  средняя общеобразовательная школа Сабинского муниципального района Республики Татарстан\""]
[16,"Муниципальное бюджетное общеобразовательное учреждение \"Нижнешитцинская основная общеобразовательная школа Сабинского муниципального района Республики Татарстан\"","Набиуллин","Ильмаз","Ильнурович","м","нет",7,7,4,null,4,9,"участник","Хасанова Миляуша Мулламухаметовна","Муниципальное бюджетное общеобразовательное учреждение \"Нижнешитцинская основная общеобразовательная школа Сабинского муниципального района Республики Татарстан\""]
[17,"Муниципальное бюджетное общеобразовательное учреждение \"Мичанская основная общеобразовательная школа Сабинского муниципального района Республики Татарстан\" ","Мубараков ","Альмир ","Ильназович ","м ","нет",7,7,4,null,4,9,"участник","Сабирзянова Финя Магруфовна ","Муниципальное бюджетное общеобразовательное учреждение \"Мичанская основная общеобразовательная школа Сабинского муниципального района Республики Татарстан\" "]
[18,"Муниципальное бюджетное общеобразовательное учреждение \"Шикшинская  основная общеобразовательная школа Сабинского муниципального района Республики Татарстан\" ","Галимов","Ислам","Ильнарович","м ","нет",7,7,9,null,9,9,"победитель","Яруллина Лейсан Курбангалиевна","Муниципальное бюджетное общеобразовательное учреждение \"Шикшинская  основная общеобразовательная школа Сабинского муниципального района Республики Татарстан\" "]

{"sheet":"8 КЛАСС","index":1,"n_rows":19,"n_cols":16,"rows_kept":19}
["№","Название ОУ","Фамилия","Имя","Отчество","Пол","Участник с ОВЗ","Класс","Класс участия","Первичный балл","Добавлено по итогам апелляций","Итоговый балл","Макс. Балл","Статус","Учитель","Место работы учителя"]
[1,"Муниципальное бюджетное общеобразовательное учреждение \"Кильдебякская средняя общеобразовательная школа Сабинского муниципального района Республики Татарстан\"","Хафизова","Дина","Аюповна","Ж","нет",8,8,5,null,{"$f":"J2+K2","v":5},10,"участник","Гаптерахимова Рузиля Таснимовна","муниципальное бюджетное общеобразовательное учреждение \"Кильдебякская средняя общеобразовательная школа Сабинского муниципального района Республики Татарстан\""]
[2,"Муниципальное бюджетное общеобразовательное учреждение \"Тимершикская средняя общеобразовательная школа Сабинского муниципального района РТ\"","Нагимова","Алиса","Айратовна","ж","нет",8,8,6,null,{"$f":"J3+K3","v":6},10,"участник","Фазылова Сюмбель Рамилевна","Муниципальное бюджетное общеобразовательное учреждение \"Тимершикская средняя общеобразовательная школа Сабинского муниципального района РТ\""]
[3,"Муниципальное бюджетное общеобразовательное учреждение «Центр образования «ОНИКС» для одаренных детей» Сабинского муниципального района Республики Татарстан","Абдуллин","Амир ","Маратович","м",null,8,8,8,null,8,10,"призёр","Гаптерахимов Расим Таснимович","Муниципальное бюджетное общеобразовательное учреждение «Центр образования «ОНИКС» для одаренных детей» Сабинского муниципального района Республики Татарстан"]
[4,"Муниципальное бюджетное общеобразовательное учреждение «Центр образования «ОНИКС» для одаренных детей» Сабинского муниципального района Республики Татарстан","Мавлетова","Аниса","Рустамовна","ж",null,8,8,8,null,8,10,"призёр","Гаптерахимов Расим Таснимович","Муниципальное бюджетное общеобразовательное учреждение «Центр образования «ОНИКС» для одаренных детей» Сабинского муниципального района Республики Татарстан"]
[5,"Муниципальное бюджетное общеобразовательное учреждение \"Большекибячинская средняя общеобразовательная школа Сабинского муниципального района РТ\"","Галиуллин ","Алмаз","Айдарович","м","нет",8,8,3,null,3,10,"участник","Каримова Руфина Рафиловна","Муниципальное бюджетное общеобразовательное учреждение \"Большекибячинская средняя общеобразовательная школа Сабинского муниципального района РТ\""]
[6,"Муниципальное бюджетное общеобразовательное учреждение \"Сатышевская средняя общеобразовательная школа Сабинского муниципального района Республики Татарстан им. Ш.З.Зиннурова\"","Сабиров","Алмаз","Маратович","м","нет",8,8,7,null,7,10,"призёр","Рахимов Радиф Мулламухаметович","Муниципальное бюджетное общеобразовательное учреждение \"Сатышевская средняя общеобразовательная школа Сабинского муниципального района Республики Татарстан им. Ш.З.Зиннурова\""]
[7,"Муниципальное бюджетное общеобразовательное учреждение \"Шеморданский лицей \"Рост\" Сабинского муниципального района Республики Татарстан\"","Файзрахманов","Карим","Рустемович","м","нет",8,8,9,null,9,10,"победитель","Иванова Алина Андреевна","Муниципальное бюджетное общеобразовательное учреждение \"Шеморданский лицей \"Рост\" Сабинского муниципального района Республики Татарстан\""]
[8,"Муниципальное бюджетное общеобразовательное учреждение \"Шеморданский лицей \"Рост\" Сабинского муниципального района Республики Татарстан\"","Юнусов","Ихсан","Рустемович","м","нет",8,8,9,null,9,10,"победитель","Иванова Алина Андреевна","Муниципальное бюджетное общеобразовательное учреждение \"Шеморданский лицей \"Рост\" Сабинского муниципального района Республики Татарстан\""]
[9,"Муниципальное бюджетное общеобразовательное учреждение \"Большешинарская  средняя общеобразовательная школа имени А.А. Ахунзянова Сабинского муниципального района РТ\"","Мухаметова","Залина","Илфатовна","ж","нет",8,8,6,null,6,10,"участник","Ахметов Айдар Рашитович","Муниципальное бюджетное общеобразовательное учреждение \"Большешинарская  средняя общеобразовательная школа имени А.А. Ахунзянова Сабинского муниципального района РТ\""]
[10,"Государственное бюджетное общеобразовательное учреждение \"Икшурминская кадетская школа-интернат имени Байкиева К.С.\"","Кашапов","Самир ","Альмирович","м","нет",8,8,2,null,2,10,"участник","Тимерханова Лейсан Фирдаусовна","Государственное бюджетное общеобразовательное учреждение \"Икшурминская кадетская школа-интернат имени Байкиева К.С.\""]
[11,"Муниципальное бюджетное\n общеобразовательное учреждение\n \"Лесхозская средняя\n общеобразовательная школа\n Сабинского муниципального \nрайона Республики Татарстан\"","Латипов","Ранис","Рустемович","м","нет",8,8,6,null,6,10,"участник",null,"Муниципальное бюджетное\n общеобразовательное учреждение\n \"Лесхозская средняя\n общеобразовательная школа\n Сабинского муниципального \nрайона Республики Татарстан\""]
[12,"Муниципальное бюджетное общеобразовательное учреждение \"Мичанская основная общеобразовательная школа Сабинского муниципального района Республики Татарстан\"","Халиков ","Булат","Раушанович","м","нет",8,8,5,null,5,10,"участник",null,"Муниципальное бюджетное общеобразовательное учреждение \"Мичанская основная общеобразовательная школа Сабинского муниципального района Республики Татарстан\""]
[13,"Муниципальное бюджетное общеобразовательное учреждение \"Сабабашская основная общеобразовательная школа Сабинского муниципального района РТ\"","Хатипов","Муса","Винирович","м","нет",8,8,3,null,3,10,"участник",null,"Муниципальное бюджетное общеобразовательное учреждение \"Сабабашская основная общеобразовательная школа Сабинского муниципального района РТ\""]
[14,"Муниципальное бюджетное  общеобразовательное учреждение \n\"Гимназия п.г.т. Богатые Сабы Сабинского муниципального\n района Республики Татарстан\"","Галимзянов ","Камиль","Айратович","м","нет",8,8,7,null,7,10,"призёр",null,"Муниципальное бюджетное  общеобразовательное учреждение \n\"Гимназия п.г.т. Богатые Сабы Сабинского муниципального\n района Республики Татарстан\""]
[15,"Муниципальное бюджетное  общеобразовательное учреждение \n\"Гимназия п.г.т. Богатые Сабы Сабинского муниципального\n района Республики Татарстан\"","Валиева ","Марьям","Азатовна","ж","нет",8,8,5,null,5,10,"участник",null,"Муниципальное бюджетное  общеобразовательное учреждение \n\"Гимназия п.г.т. Богатые Сабы Сабинского муниципального\n района Республики Татарстан\""]
[16,"муниципальное бюджетное общеобразовательное учреждение \"Изминская средняя общеобразовательная школа Сабинского муниципального района Республики Татарстан\"","Гатауллин","Булат","Азатович","м","нет",8,8,6,null,6,10,"участник","Тимергалиева Гульфина Фаризовна","муниципальное бюджетное общеобразовательное учреждение \"Изминская средняя общеобразовательная школа Сабинского муниципального района Республики Татарстан\""]
[17,"Муниципальное бюджетное общеобразовательное учреждение \"Сабинская  средняя общеобразовательная школа Сабинского муниципального района Республики Татарстан\"","Нигъматуллин ","Аяз","Зульфатович","м","нет",8,8,1,null,1,10,"участник","Галимбекова Гулина Флоридовна","Муниципальное бюджетное общеобразовательное учреждение \"Сабинская  средняя общеобразовательная школа Сабинского муниципального района Республики Татарстан\""]
[18,"Муниципальное бюджетное общеобразовательное учреждение \"Шикшинская  основная общеобразовательная школа Сабинского муниципального района Республики Татарстан\" ","Мубаракова","Эльвина","Рузалевна","ж","нет",8,8,2,null,2,10,"участник","Яруллина Лейсан Курбангалиевна","Муниципальное бюджетное общеобразовательное учреждение \"Шикшинская  основная общеобразовательная школа Сабинского муниципального района Республики Татарстан\" "]

{"sheet":"9 КЛАСС","index":2,"n_rows":19,"n_cols":16,"rows_kept":19}
["№","Название ОУ","Фамилия","Имя","Отчество","Пол","Участник с ОВЗ","Класс","Класс участия","Первичный балл","Добавлено по итогам апелляций","Итоговый балл","Макс. Балл","Статус","Учитель","Место работы учителя"]
[1,"Муниципальное бюджетное общеобразовательное учреждение \"Юлбатская основная общеобразовательная школа Сабинского муниципального района РТ\"","Хасанов","Табрис","Рамилевич","м","нет",9,9,9,null,{"$f":"J2+K2","v":9},10,"призёр","Хасанова Миляуша Мулламухаметовна","Муниципальное бюджетное общеобразовательное учреждение \"Юлбатская основная общеобразовательная школа Сабинского муниципального района РТ\""]
[2,"муниципальное бюджетное общеобразовательное учреждение \"Кильдебякская средняя общеобразовательная школа Сабинского муниципального района Республики Татарстан\"","Ганиева","Сюмбель","Фидаилевна","Ж","нет",9,9,4,null,{"$f":"J3+K3","v":4},10,"участник","Гаптерахимова Рузиля Таснимовна","муниципальное бюджетное общеобразовательное учреждение \"Кильдебякская средняя общеобразовательная школа Сабинского муниципального района Республики Татарстан\""]
[3,"Муниципальное бюджетное общеобразовательное учреждение \"Тимершикская средняя общеобразовательная школа Сабинского муниципального района РТ\"","Рахматуллина","Амина","Вильнуровна","ж","нет",9,9,2,null,2,10,"участник","Фазылова Сюмбель Рамилевна","Муниципальное бюджетное общеобразовательное учреждение \"Тимершикская средняя общеобразовательная школа Сабинского муниципального района РТ\""]
[4,"Муниципальное бюджетное общеобразовательное учреждение \"Сатышевская средняя общеобразовательная школа Сабинского муниципального района Республики Татарстан им. Ш.З.Зиннурова\"","Хазиев","Ильсур","Ильгизарович","м","нет",9,9,8,null,8,10,"призёр","Рахимов Радиф Мулламухаметович","Муниципальное бюджетное общеобразовательное учреждение \"Сатышевская средняя общеобразовательная школа Сабинского муниципального района Республики Татарстан им. Ш.З.Зиннурова\""]
[5,"Муниципальное бюджетное общеобразовательное учреждение «Центр образования «ОНИКС» для одаренных детей» Сабинского муниципального района Республики Татарстан","Гатауллина","Гульфия","Ильгизаровна","ж","нет",9,9,6,null,6,10,"участник","Гаптерахимов Расим Таснимович","Муниципальное бюджетное общеобразовательное учреждение «Центр образования «ОНИКС» для одаренных детей» Сабинского муниципального района Республики Татарстан"]
[6,"Муниципальное бюджетное общеобразовательное учреждение «Центр образования «ОНИКС» для одаренных детей» Сабинского муниципального района Республики Татарстан","Латипова","Регина","Ильнаровна","ж","нет",9,9,9,null,9,10,"призёр","Гаптерахимов Расим Таснимович","Муниципальное бюджетное общеобразовательное учреждение «Центр образования «ОНИКС» для одаренных детей» Сабинского муниципального района Республики Татарстан"]
[7,"Муниципальное бюджетное общеобразовательное учреждение \"Шеморданский лицей \"Рост\" Сабинского муниципального района Республики Татарстан\"","Хазиев","Самат","Равилевич","м","нет",9,9,9,null,9,10,"призёр","Иванова Алина Андреевна","Муниципальное бюджетное общеобразовательное учреждение \"Шеморданский лицей \"Рост\" Сабинского муниципального района Республики Татарстан\""]
[8,"Муниципальное бюджетное общеобразовательное учреждение \"Шеморданский лицей \"Рост\" Сабинского муниципального района Республики Татарстан\"","Степанов","Рамин","Андреевич","м","нет",9,9,10,null,10,10,"победитель","Иванова Алина Андреевна","Муниципальное бюджетное общеобразовательное учреждение \"Шеморданский лицей \"Рост\" Сабинского муниципального района Республики Татарстан\""]
[9,"Муниципальное бюджетное общеобразовательное учреждение \"Большешинарская  средняя общеобразовательная школа имени А.А. Ахунзянова Сабинского муниципального района РТ\"","Нигметзянова","Ясмина","Ильнуровна","ж","нет",9,9,2,null,2,10,"участник","Ахметов Айдар Рашитович","Муниципальное бюджетное общеобразовательное учреждение \"Большешинарская  средняя общеобразовательная школа имени А.А. Ахунзянова Сабинского муниципального района РТ\""]
[10,"Муниципальное бюджетное общеобразовательное учреждение \"Большеарташская основная общеобразовательная школа Сабинского муниципального района Республики Татарстан\"","Билалова","Малика","Аязовна","ж","нет",9,9,7,null,7,10,"участник","Гайбадуллин Ильнур Бакиевич","Муниципальное бюджетное общеобразовательное учреждение \"Большеарташская основная общеобразовательная школа Сабинского муниципального района Республики Татарстан\""]
[11,"Государственное бюджетное общеобразовательное учреждение \"Икшурминская кадетская школа-интернат имени Байкиева К.С.\"","Трофимов ","Николай","Геннадьевич ","м","нет",9,9,4,null,4,10,"участник","Тимерханова Лейсан Фирдаусовна","Государственное бюджетное общеобразовательное учреждение \"Икшурминская кадетская школа-интернат имени Байкиева К.С.\""]
[12,"Муниципальное бюджетное общеобразовательное учреждение \"Сабабашская основная общеобразовательная школа Сабинского муниципального района РТ\"","Шамсутдинова","Ясмина","Флоритовна","ж","нет",9,9,3,null,3,10,"участник","Тухфатуллина Миляуша Бикташевна","Муниципальное бюджетное общеобразовательное учреждение \"Сабабашская основная общеобразовательная школа Сабинского муниципального района РТ\""]
[13,"Муниципальное бюджетное  общеобразовательное учреждение \n\"Гимназия п.г.т. Богатые Сабы Сабинского муниципального\n района Республики Татарстан\"","Хадеев","Ильсаф","Ленарович","м","нет",9,9,4,null,4,10,"участник","Байрамова Лейсан Илгизаровна","Муниципальное бюджетное  общеобразовательное учреждение \n\"Гимназия п.г.т. Богатые Сабы Сабинского муниципального\n района Республики Татарстан\""]
[14,"Муниципальное бюджетное  общеобразовательное учреждение \n\"Гимназия п.г.т. Богатые Сабы Сабинского муниципального\n района Республики Татарстан\"","Фарляхов","Альберт","Маратович","м","нет",9,9,4,null,4,10,"участник","Байрамова Лейсан Илгизаровна","Муниципальное бюджетное  общеобразовательное учреждение \n\"Гимназия п.г.т. Богатые Сабы Сабинского муниципального\n района Республики Татарстан\""]
[15,"Муниципальное бюджетное общеобразовательное учреждение \"Верхнесиметская средняя общеобразовательная школа Сабинского муниципального района Республики ТатарстанТ\"","Иксанова","Алина","Расиховна","ж","нет",null,9,3,null,3,10,"участник","Загриева Гульнар Гарайшовна","Муниципальное бюджетное общеобразовательное учреждение \"Верхнесиметская средняя общеобразовательная школа Сабинского муниципального района Республики ТатарстанТ\""]
[16,"муниципальное бюджетное общеобразовательное учреждение \"Изминская средняя общеобразовательная школа Сабинского муниципального района Республики Татарстан\"","Шайхетдинова","Марьям","Альмировна","ж","нет",9,9,10,null,10,10,"победитель","Галиева Гульназ Муллагалиевна","муниципальное бюджетное общеобразовательное учреждение \"Изминская средняя общеобразовательная школа Сабинского муниципального района Республики Татарстан\""]
[17,"Муниципальное бюджетное общеобразовательное учреждение \"Сабинская  средняя общеобразовательная школа Сабинского муниципального района Республики Татарстан\"","Ханов","Ильдан","Ильнурович","м","нет",9,9,1,null,1,10,"участник","Галимбекова Гулина Флоридовна","Муниципальное бюджетное общеобразовательное учреждение \"Сабинская  средняя общеобразовательная школа Сабинского муниципального района Республики Татарстан\""]
[18,"Муниципальное бюджетное общеобразовательное учреждение \"Мичанская основная общеобразовательная школа Сабинского муниципального района Республики Татарстан\" ","Тимербаева ","Азалия","Рамилевна ","ж","нет",9,9,4,null,4,10,"участник","Сабирзянова Финя Магруфовна ","Муниципальное бюджетное общеобразовательное учреждение \"Мичанская основная общеобразовательная школа Сабинского муниципального района Республики Татарстан\" "]

{"sheet":"10 КЛАСС","index":3,"n_rows":16,"n_cols":16,"rows_kept":16}
["№","Название ОУ","Фамилия","Имя","Отчество","Пол","Участник с ОВЗ","Класс","Класс участия","Первичный балл","Добавлено по итогам апелляций","Итоговый балл","Макс. Балл","Статус","Учитель","Место работы учителя"]
[1,"Муниципальное бюджетное общеобразовательное учреждение «Центр образования «ОНИКС» для одаренных детей» Сабинского муниципального района Республики Татарстан","Гильмутдинов","Бахтияр","Ильнурович","м","нет",10,10,9,null,{"$f":"J2+K2","v":9},10,"призёр","Гаптерахимов Расим Таснимович","Муниципальное бюджетное общеобразовательное учреждение «Центр образования «ОНИКС» для одаренных детей» Сабинского муниципального района Республики Татарстан"]
[2,"Муниципальное бюджетное общеобразовательное учреждение «Центр образования «ОНИКС» для одаренных детей» Сабинского муниципального района Республики Татарстан","Зяляев","Амир","Альмирович","м","нет",10,10,9,null,{"$f":"J3+K3","v":9},10,"призёр","Гаптерахимов Расим Таснимович","Муниципальное бюджетное общеобразовательное учреждение «Центр образования «ОНИКС» для одаренных детей» Сабинского муниципального района Республики Татарстан"]
[3,"Муниципальное бюджетное общеобразовательное учреждение \"Сатышевская средняя общеобразовательная школа Сабинского муниципального района Республики Татарстан им. Ш.З.Зиннурова\"","Хабибрахманов","Айрат","Азатович","м","нет",10,10,2,null,2,10,"участник","Рахимов Радиф Мулламухаметович","Муниципальное бюджетное общеобразовательное учреждение \"Сатышевская средняя общеобразовательная школа Сабинского муниципального района Республики Татарстан им. Ш.З.Зиннурова\""]
[4,"Муниципальное бюджетное общеобразовательное учреждение \"Шеморданский лицей \"Рост\" Сабинского муниципального района Республики Татарстан\"","Камалутдинова","Вероника","Маратовна","ж","нет",10,10,3,null,3,10,"участник","Цыганкова Луиза Сергеевна","Муниципальное бюджетное общеобразовательное учреждение \"Шеморданский лицей \"Рост\" Сабинского муниципального района Республики Татарстан\""]
[5,"Муниципальное бюджетное общеобразовательное учреждение \"Шеморданский лицей \"Рост\" Сабинского муниципального района Республики Татарстан\"","Зиннатов","Ильяс","Айратович","м","н",10,10,3,null,3,10,"участник","Цыганкова Луиза Сергеевна","Муниципальное бюджетное общеобразовательное учреждение \"Шеморданский лицей \"Рост\" Сабинского муниципального района Республики Татарстан\""]
[6,"Муниципальное бюджетное общеобразовательное учреждение \"Большекибячинская средняя общеобразовательная школа Сабинского муниципального района РТ\"","Хайруллина","Ралина","Рамилевна","ж","нет",10,10,0,null,0,10,"участник","Ильясова Рафиня Габдрашидовна","Муниципальное бюджетное общеобразовательное учреждение \"Большекибячинская средняя общеобразовательная школа Сабинского муниципального района РТ\""]
[7,"Муниципальное бюджетное общеобразовательное учреждение \"Большешинарская  средняя общеобразовательная школа имени А.А. Ахунзянова Сабинского муниципального района РТ\"","Гилмутдинов","Айзат","Азатович","м","нет",10,10,0,null,0,10,"участник","Ахметов Айдар Рашитович","Муниципальное бюджетное общеобразовательное учреждение \"Большешинарская  средняя общеобразовательная школа имени А.А. Ахунзянова Сабинского муниципального района РТ\""]
[8,"муниципальное бюджетное общеобразовательное учреждение \"Иштуганская средняя общеобразовательная школа Сабинского муниципального района Республики Татарстан\"","Халилов ","Ильназ","Радимович","м","нет",10,10,2,null,2,10,"участник"]
[9,"муниципальное бюджетное общеобразовательное учреждение \"Иштуганская средняя общеобразовательная школа Сабинского муниципального района Республики Татарстан\"","Иванов","Роман","Сергеевич","м","нет",10,10,2,null,2,10,"участник","Бурганов Тимур Юрьевич","муниципальное бюджетное общеобразовательное учреждение \"Иштуганская средняя общеобразовательная школа Сабинского муниципального района Республики Татарстан\""]
[10,"Государственное бюджетное общеобразовательное учреждение \"Икшурминская кадетская школа-интернат имени Байкиева К.С.\"","Мамин ","Нурлан ","Амирович ","м","нет",10,10,2,null,2,10,"участник","Тимерханова Лейсан Фирдаусовна","Государственное бюджетное общеобразовательное учреждение \"Икшурминская кадетская школа-интернат имени Байкиева К.С.\""]
[11,"Муниципальное бюджетное  общеобразовательное учреждение \n\"Гимназия п.г.т. Богатые Сабы Сабинского муниципального\n района Республики Татарстан\"","Бурганов","Бахтияр ","Ильшатович","м","нет",10,10,0,null,0,10,"участник","Байрамова Лейсан Илгизаровна","Муниципальное бюджетное  общеобразовательное учреждение \n\"Гимназия п.г.т. Богатые Сабы Сабинского муниципального\n района Республики Татарстан\""]
[12,"Муниципальное бюджетное  общеобразовательное учреждение \n\"Гимназия п.г.т. Богатые Сабы Сабинского муниципального\n района Республики Татарстан\"","Фасхиев","Ильназ","Ильгамович","м","нет",10,10,2,null,2,10,"участник","Байрамова Лейсан Илгизаровна","Муниципальное бюджетное  общеобразовательное учреждение \n\"Гимназия п.г.т. Богатые Сабы Сабинского муниципального\n района Республики Татарстан\""]
[13,"муниципальное бюджетное общеобразовательное учреждение \"Изминская средняя общеобразовательная школа Сабинского муниципального района Республики Татарстан\"","Гильманова","Залина","Раушановна","ж","нет",10,10,10,null,10,10,"победитель","Галиева Гульназ Муллагалиевна","муниципальное бюджетное общеобразовательное учреждение \"Изминская средняя общеобразовательная школа Сабинского муниципального района Республики Татарстан\""]
[14,"Муниципальное бюджетное общеобразовательное учреждение \"Евлаштауская  средняя общеобразовательная школа Сабинского муниципального района Республики Татарстан\"","Идиятова","Ильсина","Ильнуровна","ж","нет",10,10,2,null,2,10,"участник","Яруллина Лейсан  Корбанга-лиевна","Муниципальное бюджетное общеобразовательное учреждение \"Евлаштауская  средняя общеобразовательная школа Сабинского муниципального района Республики Татарстан\""]
[15,"Муниципальное бюджетное общеобразовательное учреждение \"Сабинская  средняя общеобразовательная школа Сабинского муниципального района Республики Татарстан\"","Ягафаров","Ильназ","Рустемович","м","нет",10,10,2,null,2,10,"участник","Фахриева Адиля Рамилевна","Муниципальное бюджетное общеобразовательное учреждение \"Сабинская  средняя общеобразовательная школа Сабинского муниципального района Республики Татарстан\""]

{"sheet":"11 КЛАСС","index":4,"n_rows":15,"n_cols":16,"rows_kept":15}
["№","Название ОУ","Фамилия","Имя","Отчество","Пол","Участник с ОВЗ","Класс","Класс участия","Первичный балл","Добавлено по итогам апелляций","Итоговый балл","Макс. Балл","Статус","Учитель","Место работы учителя"]
[1,"муниципальное бюджетное общеобразовательное учреждение \"Кильдебякская средняя общеобразовательная школа Сабинского муниципального района Республики Татарстан\"","Каримуллин","Дамир","Зульфатович","М","нет",11,11,1,null,{"$f":"J2+K2","v":1},11,"участник","Гаптерахимова Рузиля Таснимовна","муниципальное бюджетное общеобразовательное учреждение \"Кильдебякская средняя общеобразовательная школа Сабинского муниципального района Республики Татарстан\""]
[2,"Муниципальное бюджетное общеобразовательное учреждение «Центр образования «ОНИКС» для одаренных детей» Сабинского муниципального района Республики Татарстан","Багавиев","Ильсаф","Зуфарович","м","нет",11,11,2.5,null,{"$f":"J3+K3","v":2.5},11,"участник","Гаптерахимов Расим Таснимович","Муниципальное бюджетное общеобразовательное учреждение «Центр образования «ОНИКС» для одаренных детей» Сабинского муниципального района Республики Татарстан"]
[3,"Муниципальное бюджетное общеобразовательное учреждение «Центр образования «ОНИКС» для одаренных детей» Сабинского муниципального района Республики Татарстан","Мухамадияров","Инсаф","Ильнарович","м","нет",11,11,6.5,null,6.5,11,"победитель","Гаптерахимов Расим Таснимович","Муниципальное бюджетное общеобразовательное учреждение «Центр образования «ОНИКС» для одаренных детей» Сабинского муниципального района Республики Татарстан"]
[4,"Муниципальное бюджетное общеобразовательное учреждение \"Сатышевская средняя общеобразовательная школа Сабинского муниципального района Республики Татарстан им. Ш.З.Зиннурова\"","Латыпов","Халиль","Камилевич","м","нет",11,11,0.5,null,0.5,11,"участник","Рахимов Радиф Мулламухаметович","Муниципальное бюджетное общеобразовательное учреждение \"Сатышевская средняя общеобразовательная школа Сабинского муниципального района Республики Татарстан им. Ш.З.Зиннурова\""]
[5,"Муниципальное бюджетное общеобразовательное учреждение \"Шеморданский лицей \"Рост\" Сабинского муниципального района Республики Татарстан\"","Маметова","Асия","Азатовна","ж","нет",11,11,5,null,5,11,"участник","Иванова Алина Андреевна","Муниципальное бюджетное общеобразовательное учреждение \"Шеморданский лицей \"Рост\" Сабинского муниципального района Республики Татарстан\""]
[6,"Муниципальное бюджетное общеобразовательное учреждение \"Шеморданский лицей \"Рост\" Сабинского муниципального района Республики Татарстан\"","Сабиров","Эмиль","Ильнурович","м","нет",null,11,6.5,null,6.5,11,"победитель","Иванова Алина Андреевна","Муниципальное бюджетное общеобразовательное учреждение \"Шеморданский лицей \"Рост\" Сабинского муниципального района Республики Татарстан\""]
[7,"Муниципальное бюджетное общеобразовательное учреждение \"Большекибячинская средняя общеобразовательная школа Сабинского муниципального района РТ\"","Ризов","Ильяс","Ильнурович","м","нет",11,11,1,null,1,11,"участник","Ильясова Рафиня Габдрашидовна","Муниципальное бюджетное общеобразовательное учреждение \"Большекибячинская средняя общеобразовательная школа Сабинского муниципального района РТ\""]
[8,"муниципальное бюджетное общеобразовательное учреждение \"Иштуганская средняя общеобразовательная школа Сабинского муниципального района Республики Татарстан\"","Гайнутдинов","Адель","Ильнурович","м","нет",11,11,4.5,null,4.5,11,"участник","Бурганов Тимур Юрьевич","муниципальное бюджетное общеобразовательное учреждение \"Иштуганская средняя общеобразовательная школа Сабинского муниципального района Республики Татарстан\""]
[9,"Государственное бюджетное общеобразовательное учреждение \"Икшурминская кадетская школа-интернат имени Байкиева К.С.\"","Нуриев","Адель","Равилевич","м","нет",11,11,1,null,1,11,"участник","Тимерханова Лейсан Фирдаусовна","Государственное бюджетное общеобразовательное учреждение \"Икшурминская кадетская школа-интернат имени Байкиева К.С.\""]
[10,"Муниципальное бюджетное  общеобразовательное учреждение \n\"Гимназия п.г.т. Богатые Сабы Сабинского муниципального\n района Республики Татарстан\"","Валимухаметов","Рим","Рафилевич","м","нет",11,11,1,null,1,11,"участник","Байрамова Лейсан Илгизаровна","Муниципальное бюджетное  общеобразовательное учреждение \n\"Гимназия п.г.т. Богатые Сабы Сабинского муниципального\n района Республики Татарстан\""]
[11,"Муниципальное бюджетное  общеобразовательное учреждение \n\"Гимназия п.г.т. Богатые Сабы Сабинского муниципального\n района Республики Татарстан\"","Каримуллин","Рамиль","Камилевич","м","нет",11,11,2,null,2,11,"участник","Байрамова Лейсан Илгизаровна","Муниципальное бюджетное  общеобразовательное учреждение \n\"Гимназия п.г.т. Богатые Сабы Сабинского муниципального\n района Республики Татарстан\""]
[12,"муниципальное бюджетное общеобразовательное учреждение \"Изминская средняя общеобразовательная школа Сабинского муниципального района Республики Татарстан\"","Сагитов","Рустем","Раилевич","м","нет",11,11,5,null,5,11,"участник","Галиева Гульназ Муллагалиевна","муниципальное бюджетное общеобразовательное учреждение \"Изминская средняя общеобразовательная школа Сабинского муниципального района Республики Татарстан\""]
[13,"Муниципальное бюджетное общеобразовательное учреждение \"Сабинская  средняя общеобразовательная школа Сабинского муниципального района Республики Татарстан\"","Маулин","Булат","Раисович","м","нет",11,11,1,null,1,11,"участник","Фахриева Адиля Рамилевна","Муниципальное бюджетное общеобразовательное учреждение \"Сабинская  средняя общеобразовательная школа Сабинского муниципального района Республики Татарстан\""]
[14,"муниципальное бюджетное общеобразовательное учреждение \"Верхнесиметская средняя общеобразовательная школа Сабинского муниципального района Республики Татарстан\"","Хасанова","Иделия","Инсафовна","ж","нет",11,11,2.5,null,2.5,11,"участник",null,"муниципальное бюджетное общеобразовательное учреждение \"Верхнесиметская средняя общеобразовательная школа Сабинского муниципального района Республики Татарстан\""]